[Event "Titled Tuesday Blitz May 2 Late 2023"]
[White "Adewumi, Tanitoluwa"]
[Black "Todorovic, Bojan"]
[WhiteFideId "30966396"]
[BlackFideId "917087"]
[WhiteElo "2283"]
[BlackElo "2266"]
[Result "1-0"]
[Round "03"]
[TimeControl "180+2"]
[Date "2023.05.02"]
[WhiteClock "0:00:01"]
[BlackClock "0:00:09"]

1. e4 {[%clk 0:03:00]}  g6 {[%clk 0:02:58]} 2. d4 {[%clk 0:03:00]}  Bg7 {[%clk 0:02:56]} 3. Bc4 {[%clk 0:03:00]}  d6 {[%clk 0:02:52]} 4. Nc3 {[%clk 0:02:59]}  a6 {[%clk 0:02:49]} 5. a4 {[%clk 0:02:55]}  Nc6 {[%clk 0:02:46]} 6. Nge2 {[%clk 0:02:43]}  Nf6 {[%clk 0:02:40]} 7. O-O {[%clk 0:02:37]}  O-O {[%clk 0:02:37]} 8. h3 {[%clk 0:02:35]}  e5 {[%clk 0:02:31]} 9. dxe5 {[%clk 0:02:34]}  dxe5 {[%clk 0:02:24]} 10. Qxd8 {[%clk 0:02:30]}  Rxd8 {[%clk 0:02:23]} 11. Bg5 {[%clk 0:02:31]}  Rd6 {[%clk 0:02:14]} 12. Rad1 {[%clk 0:02:28]}  Nd4 {[%clk 0:02:05]} 13. Nxd4 {[%clk 0:02:23]}  Rxd4 {[%clk 0:01:56]} 14. Rxd4 {[%clk 0:02:20]}  exd4 {[%clk 0:01:55]} 15. e5 {[%clk 0:01:55]}  Nd7 {[%clk 0:01:42]} 16. e6 {[%clk 0:01:49]}  Ne5 {[%clk 0:01:41]} 17. exf7+ {[%clk 0:01:35]}  Kf8 {[%clk 0:01:40]} 18. Nd5 {[%clk 0:00:46]}  Nxc4 {[%clk 0:01:36]} 19. Nxc7 {[%clk 0:00:30]}  Rb8 {[%clk 0:01:35]} 20. Re1 {[%clk 0:00:22]}  Bd7 {[%clk 0:01:06]} 21. Re7 {[%clk 0:00:09]}  Rd8 {[%clk 0:00:39]} 22. Re1 {[%clk 0:00:02]}  Rc8 {[%clk 0:00:37]} 23. Bf4 {[%clk 0:00:02]}  Kxf7 {[%clk 0:00:26]} 24. Nd5 {[%clk 0:00:02]}  Bf8 {[%clk 0:00:18]} 25. b3 {[%clk 0:00:02]}  Nd6 {[%clk 0:00:15]} 26. Nb6 {[%clk 0:00:02]}  Rc7 {[%clk 0:00:09]} 27. Rd1 {[%clk 0:00:01]} 1-0


[Site "https://www.chess.com"]

[Event "Titled Tuesday Blitz May 2 Late 2023"]
[White "Poltorak, Sebastian"]
[Black "Roux, Baptiste"]
[WhiteFideId "1199498"]
[BlackFideId "36017450"]
[WhiteElo "2195"]
[BlackElo "2077"]
[Result "1-0"]
[Round "03"]
[TimeControl "180+2"]
[Date "2023.05.02"]
[WhiteClock "0:00:16"]
[BlackClock "0:00:08"]

1. d4 {[%clk 0:02:59]}  Nf6 {[%clk 0:02:49]} 2. c4 {[%clk 0:02:59]}  c5 {[%clk 0:02:48]} 3. d5 {[%clk 0:02:58]}  e6 {[%clk 0:02:49]} 4. Nc3 {[%clk 0:02:57]}  d6 {[%clk 0:02:43]} 5. e4 {[%clk 0:02:56]}  Be7 {[%clk 0:02:41]} 6. f3 {[%clk 0:02:53]}  O-O {[%clk 0:02:40]} 7. Be3 {[%clk 0:02:52]}  e5 {[%clk 0:02:39]} 8. Nge2 {[%clk 0:02:50]}  a6 {[%clk 0:02:35]} 9. a4 {[%clk 0:02:47]}  Nh5 {[%clk 0:02:31]} 10. Qd2 {[%clk 0:02:42]}  Bd7 {[%clk 0:02:06]} 11. g3 {[%clk 0:02:20]}  Qa5 {[%clk 0:01:43]} 12. Ra3 {[%clk 0:02:13]}  Qb4 {[%clk 0:01:33]} 13. Bg2 {[%clk 0:02:10]}  Qxc4 {[%clk 0:01:30]} 14. O-O {[%clk 0:02:04]}  Qb4 {[%clk 0:01:24]} 15. f4 {[%clk 0:02:00]}  exf4 {[%clk 0:01:16]} 16. gxf4 {[%clk 0:02:00]}  Bf6 {[%clk 0:01:05]} 17. Bf3 {[%clk 0:01:59]}  g6 {[%clk 0:01:01]} 18. Bxh5 {[%clk 0:01:58]}  gxh5 {[%clk 0:01:02]} 19. Kh1 {[%clk 0:01:50]}  Kh8 {[%clk 0:01:02]} 20. e5 {[%clk 0:01:41]}  dxe5 {[%clk 0:00:58]} 21. fxe5 {[%clk 0:01:42]}  Bxe5 {[%clk 0:00:57]} 22. Bh6 {[%clk 0:01:43]}  Rg8 {[%clk 0:00:48]} 23. Qe3 {[%clk 0:01:28]}  f6 {[%clk 0:00:40]} 24. Ng3 {[%clk 0:01:11]}  Qh4 {[%clk 0:00:29]} 25. Nce4 {[%clk 0:01:03]}  Bh3 {[%clk 0:00:23]} 26. Ng5 {[%clk 0:00:33]}  Rxg5 {[%clk 0:00:20]} 27. Bxg5 {[%clk 0:00:32]}  Qxg5 {[%clk 0:00:17]} 28. Qxg5 {[%clk 0:00:32]}  fxg5 {[%clk 0:00:18]} 29. Rf8+ {[%clk 0:00:32]}  Kg7 {[%clk 0:00:19]} 30. Re8 {[%clk 0:00:32]}  Bxg3 {[%clk 0:00:17]} 31. Rxg3 {[%clk 0:00:32]}  Bd7 {[%clk 0:00:18]} 32. Rd8 {[%clk 0:00:30]}  Kf6 {[%clk 0:00:17]} 33. Re3 {[%clk 0:00:28]}  b5 {[%clk 0:00:18]} 34. a5 {[%clk 0:00:28]}  c4 {[%clk 0:00:17]} 35. Kg1 {[%clk 0:00:27]}  g4 {[%clk 0:00:17]} 36. Kf2 {[%clk 0:00:28]}  b4 {[%clk 0:00:17]} 37. Kg3 {[%clk 0:00:27]}  Kg5 {[%clk 0:00:17]} 38. Re5+ {[%clk 0:00:27]}  Kf6 {[%clk 0:00:17]} 39. Kf4 {[%clk 0:00:28]}  c3 {[%clk 0:00:16]} 40. bxc3 {[%clk 0:00:28]}  bxc3 {[%clk 0:00:17]} 41. Re3 {[%clk 0:00:28]}  c2 {[%clk 0:00:16]} 42. Rc3 {[%clk 0:00:28]}  Ba4 {[%clk 0:00:16]} 43. d6 {[%clk 0:00:23]}  Ke6 {[%clk 0:00:15]} 44. Rc4 {[%clk 0:00:21]}  Bb5 {[%clk 0:00:14]} 45. Rxc2 {[%clk 0:00:20]}  Ra7 {[%clk 0:00:12]} 46. Rxb8 {[%clk 0:00:20]}  Kxd6 {[%clk 0:00:13]} 47. Rb6+ {[%clk 0:00:19]}  Ke7 {[%clk 0:00:10]} 48. Rc1 {[%clk 0:00:16]}  Kf7 {[%clk 0:00:10]} 49. Kg5 {[%clk 0:00:17]}  Be2 {[%clk 0:00:08]} 50. Rc5 {[%clk 0:00:16]}  Kg7 {[%clk 0:00:08]} 51. Rbc6 {[%clk 0:00:14]}  Re7 {[%clk 0:00:09]} 52. Rc7 {[%clk 0:00:14]}  Kf7 {[%clk 0:00:08]} 53. Rxe7+ {[%clk 0:00:15]}  Kxe7 {[%clk 0:00:09]} 54. Re5+ {[%clk 0:00:15]}  Kd6 {[%clk 0:00:08]} 55. Rxe2 {[%clk 0:00:16]}  g3 {[%clk 0:00:08]} 56. hxg3 {[%clk 0:00:16]} 1-0


[Site "https://www.chess.com"]

[Event "Titled Tuesday Blitz May 2 Late 2023"]
[White "Leenhouts, Koen"]
[Black "Ocelak, Jakub"]
[WhiteFideId "1008439"]
[BlackFideId "23707933"]
[WhiteElo "2409"]
[BlackElo "2044"]
[Result "1/2-1/2"]
[Round "03"]
[TimeControl "180+2"]
[Date "2023.05.02"]
[WhiteClock "0:00:09"]
[BlackClock "0:00:15"]

1. e4 {[%clk 0:03:00]}  g6 {[%clk 0:02:56]} 2. d4 {[%clk 0:02:59]}  Bg7 {[%clk 0:02:55]} 3. Nc3 {[%clk 0:02:59]}  d6 {[%clk 0:02:55]} 4. Bg5 {[%clk 0:02:59]}  a6 {[%clk 0:02:50]} 5. a4 {[%clk 0:02:55]}  Nc6 {[%clk 0:02:36]} 6. d5 {[%clk 0:02:50]}  Nb8 {[%clk 0:02:35]} 7. Qd2 {[%clk 0:02:44]}  c6 {[%clk 0:02:34]} 8. Nf3 {[%clk 0:02:41]}  Qa5 {[%clk 0:02:27]} 9. Bc4 {[%clk 0:02:32]}  Nf6 {[%clk 0:02:26]} 10. O-O {[%clk 0:02:28]}  cxd5 {[%clk 0:02:21]} 11. Bxf6 {[%clk 0:02:17]}  Bxf6 {[%clk 0:02:12]} 12. Nxd5 {[%clk 0:02:16]}  Qxd2 {[%clk 0:02:10]} 13. Nxf6+ {[%clk 0:02:16]}  exf6 {[%clk 0:02:11]} 14. Nxd2 {[%clk 0:02:16]}  Be6 {[%clk 0:02:11]} 15. Rfd1 {[%clk 0:01:57]}  Ke7 {[%clk 0:02:09]} 16. Bxe6 {[%clk 0:01:45]}  fxe6 {[%clk 0:02:09]} 17. Nc4 {[%clk 0:01:46]}  Rd8 {[%clk 0:02:08]} 18. Nb6 {[%clk 0:01:45]}  Ra7 {[%clk 0:02:08]} 19. Ra3 {[%clk 0:01:43]}  Nd7 {[%clk 0:02:05]} 20. a5 {[%clk 0:01:39]}  Nxb6 {[%clk 0:01:57]} 21. axb6 {[%clk 0:01:39]}  Raa8 {[%clk 0:01:58]} 22. Rh3 {[%clk 0:01:38]}  h5 {[%clk 0:01:48]} 23. g4 {[%clk 0:01:36]}  Rh8 {[%clk 0:01:48]} 24. gxh5 {[%clk 0:01:32]}  Rxh5 {[%clk 0:01:38]} 25. Rxh5 {[%clk 0:01:15]}  gxh5 {[%clk 0:01:39]} 26. Rd3 {[%clk 0:01:15]}  Rg8+ {[%clk 0:01:39]} 27. Kf1 {[%clk 0:01:11]}  Rg5 {[%clk 0:01:39]} 28. c4 {[%clk 0:00:48]}  a5 {[%clk 0:01:29]} 29. Ke2 {[%clk 0:00:43]}  Kd7 {[%clk 0:01:22]} 30. b3 {[%clk 0:00:34]}  Kc6 {[%clk 0:01:18]} 31. Rf3 {[%clk 0:00:19]}  Rg6 {[%clk 0:01:04]} 32. Rh3 {[%clk 0:00:18]}  Rh6 {[%clk 0:01:04]} 33. Rd3 {[%clk 0:00:18]}  Rg6 {[%clk 0:01:00]} 34. Rh3 {[%clk 0:00:17]}  Rg5 {[%clk 0:00:55]} 35. f4 {[%clk 0:00:14]}  Rg2+ {[%clk 0:00:47]} 36. Kf3 {[%clk 0:00:13]}  Rb2 {[%clk 0:00:40]} 37. Rxh5 {[%clk 0:00:13]}  Rxb3+ {[%clk 0:00:40]} 38. Kg4 {[%clk 0:00:14]}  a4 {[%clk 0:00:41]} 39. Ra5 {[%clk 0:00:13]}  a3 {[%clk 0:00:38]} 40. h4 {[%clk 0:00:14]}  Kxb6 {[%clk 0:00:38]} 41. Ra8 {[%clk 0:00:14]}  Kc5 {[%clk 0:00:32]} 42. h5 {[%clk 0:00:14]}  Kb4 {[%clk 0:00:32]} 43. Ra7 {[%clk 0:00:12]}  Re3 {[%clk 0:00:20]} 44. Rxb7+ {[%clk 0:00:11]}  Kxc4 {[%clk 0:00:20]} 45. h6 {[%clk 0:00:11]}  Re1 {[%clk 0:00:20]} 46. Ra7 {[%clk 0:00:10]}  Kb3 {[%clk 0:00:20]} 47. h7 {[%clk 0:00:10]}  Rh1 {[%clk 0:00:20]} 48. Rb7+ {[%clk 0:00:10]}  Ka2 {[%clk 0:00:19]} 49. Rd7 {[%clk 0:00:09]}  Kb2 {[%clk 0:00:19]} 50. Rxd6 {[%clk 0:00:09]}  a2 {[%clk 0:00:19]} 51. Rb6+ {[%clk 0:00:09]}  Kc2 {[%clk 0:00:15]} 52. Rc6+ {[%clk 0:00:09]}  Kb2 {[%clk 0:00:15]} 53. Rb6+ {[%clk 0:00:09]}  Kc3 {[%clk 0:00:15]} 54. Ra6 {[%clk 0:00:09]}  Kb2 {[%clk 0:00:15]} 55. Rb6+ {[%clk 0:00:09]} 1/2-1/2


[Site "https://www.chess.com"]

[Event "Titled Tuesday Blitz May 2 Late 2023"]
[White "Hnydiuk, Aleksander"]
[Black "Manon-og, Ramon Jr."]
[WhiteFideId "1109057"]
[BlackFideId "5200776"]
[WhiteElo "2374"]
[BlackElo "1999"]
[Result "1-0"]
[Round "03"]
[TimeControl "180+2"]
[Date "2023.05.02"]
[WhiteClock "0:01:18"]
[BlackClock "0:00:11"]

1. e4 {[%clk 0:03:00]}  e5 {[%clk 0:02:59]} 2. Nf3 {[%clk 0:03:00]}  Nc6 {[%clk 0:02:58]} 3. d4 {[%clk 0:03:00]}  exd4 {[%clk 0:02:47]} 4. Nxd4 {[%clk 0:03:01]}  Nxd4 {[%clk 0:02:46]} 5. Qxd4 {[%clk 0:03:01]}  Nf6 {[%clk 0:02:39]} 6. e5 {[%clk 0:02:53]}  Nh5 {[%clk 0:02:04]} 7. Be2 {[%clk 0:02:36]}  c5 {[%clk 0:02:02]} 8. Qc3 {[%clk 0:02:24]}  Nf4 {[%clk 0:01:58]} 9. Bxf4 {[%clk 0:02:23]}  b5 {[%clk 0:01:49]} 10. Bf3 {[%clk 0:02:15]}  Rb8 {[%clk 0:01:43]} 11. O-O {[%clk 0:02:14]}  b4 {[%clk 0:01:42]} 12. Qe3 {[%clk 0:02:11]}  d6 {[%clk 0:01:29]} 13. exd6+ {[%clk 0:02:08]}  Kd7 {[%clk 0:01:12]} 14. a3 {[%clk 0:01:59]}  bxa3 {[%clk 0:01:07]} 15. Rxa3 {[%clk 0:01:57]}  Rxb2 {[%clk 0:01:07]} 16. Rxa7+ {[%clk 0:01:55]}  Bb7 {[%clk 0:00:54]} 17. Bxb7 {[%clk 0:01:50]}  Bxd6 {[%clk 0:00:38]} 18. Bxd6 {[%clk 0:01:39]}  Kxd6 {[%clk 0:00:35]} 19. Rd1+ {[%clk 0:01:31]}  Kc7 {[%clk 0:00:23]} 20. Qxc5+ {[%clk 0:01:27]}  Kb8 {[%clk 0:00:16]} 21. Rxd8+ {[%clk 0:01:25]}  Rxd8 {[%clk 0:00:15]} 22. Ra8+ {[%clk 0:01:19]}  Kxb7 {[%clk 0:00:14]} 23. Ra7+ {[%clk 0:01:19]}  Kb8 {[%clk 0:00:11]} 24. Qc7# {[%clk 0:01:18]} 1-0


[Site "https://www.chess.com"]

[Event "Titled Tuesday Blitz May 2 Late 2023"]
[White "Jarocka, Liwia"]
[Black "Vovk, Orest"]
[WhiteFideId "21807558"]
[BlackFideId "14113490"]
[WhiteElo "2013"]
[BlackElo "2215"]
[Result "1-0"]
[Round "03"]
[TimeControl "180+2"]
[Date "2023.05.02"]
[WhiteClock "0:00:47"]
[BlackClock "0:00:54"]

1. c4 {[%clk 0:02:56]}  e6 {[%clk 0:02:59]} 2. Nc3 {[%clk 0:02:55]}  Nf6 {[%clk 0:02:58]} 3. e3 {[%clk 0:02:55]}  Bb4 {[%clk 0:02:58]} 4. Qc2 {[%clk 0:02:54]}  O-O {[%clk 0:02:58]} 5. Nf3 {[%clk 0:02:53]}  b6 {[%clk 0:02:58]} 6. Be2 {[%clk 0:02:51]}  Bb7 {[%clk 0:02:58]} 7. O-O {[%clk 0:02:51]}  Nc6 {[%clk 0:02:57]} 8. a3 {[%clk 0:02:51]}  Be7 {[%clk 0:02:55]} 9. b4 {[%clk 0:02:51]}  d5 {[%clk 0:02:54]} 10. Bb2 {[%clk 0:02:50]}  d4 {[%clk 0:02:52]} 11. Nb5 {[%clk 0:02:47]}  dxe3 {[%clk 0:02:41]} 12. dxe3 {[%clk 0:02:45]}  a6 {[%clk 0:02:41]} 13. Rad1 {[%clk 0:02:44]}  Qc8 {[%clk 0:02:40]} 14. Nbd4 {[%clk 0:02:44]}  Nxd4 {[%clk 0:02:40]} 15. Bxd4 {[%clk 0:02:44]}  c5 {[%clk 0:02:39]} 16. bxc5 {[%clk 0:02:36]}  bxc5 {[%clk 0:02:38]} 17. Ba1 {[%clk 0:02:36]}  Be4 {[%clk 0:02:37]} 18. Qc3 {[%clk 0:02:34]}  Rd8 {[%clk 0:02:32]} 19. Rxd8+ {[%clk 0:02:20]}  Qxd8 {[%clk 0:02:30]} 20. Rd1 {[%clk 0:02:20]}  Qc7 {[%clk 0:02:29]} 21. Ne5 {[%clk 0:02:15]}  Rd8 {[%clk 0:02:26]} 22. Rxd8+ {[%clk 0:02:11]}  Bxd8 {[%clk 0:02:24]} 23. f3 {[%clk 0:02:11]}  Bb7 {[%clk 0:02:13]} 24. Kf2 {[%clk 0:02:09]}  Be7 {[%clk 0:02:09]} 25. Bb2 {[%clk 0:01:57]}  Bd6 {[%clk 0:02:08]} 26. g3 {[%clk 0:01:52]}  Bf8 {[%clk 0:02:06]} 27. Nd3 {[%clk 0:01:51]}  Nd7 {[%clk 0:02:01]} 28. Nf4 {[%clk 0:01:46]}  Nb6 {[%clk 0:01:51]} 29. Bd1 {[%clk 0:01:41]}  e5 {[%clk 0:01:42]} 30. Nd3 {[%clk 0:01:37]}  f6 {[%clk 0:01:40]} 31. a4 {[%clk 0:01:31]}  Qc6 {[%clk 0:01:34]} 32. Qb3 {[%clk 0:01:18]}  e4 {[%clk 0:01:20]} 33. Ne1 {[%clk 0:01:06]}  Bc8 {[%clk 0:01:09]} 34. a5 {[%clk 0:01:04]}  Nd7 {[%clk 0:01:06]} 35. fxe4 {[%clk 0:00:58]}  Qxe4 {[%clk 0:01:04]} 36. Bf3 {[%clk 0:00:57]}  Qf5 {[%clk 0:00:56]} 37. Qd3 {[%clk 0:00:48]}  Qe6 {[%clk 0:00:54]} 38. Bd5 {[%clk 0:00:47]} 1-0


[Site "https://www.chess.com"]

[Event "Titled Tuesday Blitz May 2 Late 2023"]
[White "Nazaretyan, Tigran"]
[Black "Gertler, David"]
[WhiteFideId "24162345"]
[BlackFideId "2017377"]
[WhiteElo "2111"]
[BlackElo "2218"]
[Result "1-0"]
[Round "03"]
[TimeControl "180+2"]
[Date "2023.05.02"]
[WhiteClock "0:00:20"]
[BlackClock "0:00:01"]

1. d4 {[%clk 0:03:00]}  Nf6 {[%clk 0:02:52]} 2. c4 {[%clk 0:02:56]}  Nc6 {[%clk 0:02:52]} 3. Nf3 {[%clk 0:02:55]}  e6 {[%clk 0:02:52]} 4. a3 {[%clk 0:02:54]}  d6 {[%clk 0:02:52]} 5. Nc3 {[%clk 0:02:53]}  g6 {[%clk 0:02:52]} 6. g3 {[%clk 0:02:49]}  Bg7 {[%clk 0:02:53]} 7. Bg2 {[%clk 0:02:49]}  O-O {[%clk 0:02:53]} 8. O-O {[%clk 0:02:48]}  e5 {[%clk 0:02:53]} 9. dxe5 {[%clk 0:02:40]}  dxe5 {[%clk 0:02:53]} 10. Bg5 {[%clk 0:02:36]}  Qe8 {[%clk 0:01:56]} 11. Nd5 {[%clk 0:02:22]}  Nxd5 {[%clk 0:01:52]} 12. cxd5 {[%clk 0:02:22]}  Nb8 {[%clk 0:01:50]} 13. e4 {[%clk 0:02:16]}  c6 {[%clk 0:01:31]} 14. d6 {[%clk 0:02:08]}  f6 {[%clk 0:01:29]} 15. Be3 {[%clk 0:02:06]}  Be6 {[%clk 0:01:28]} 16. Qd2 {[%clk 0:01:55]}  Qf7 {[%clk 0:01:08]} 17. Rfd1 {[%clk 0:01:50]}  Nd7 {[%clk 0:01:05]} 18. h4 {[%clk 0:01:43]}  h5 {[%clk 0:01:02]} 19. Qc3 {[%clk 0:01:37]}  Rfd8 {[%clk 0:00:58]} 20. b4 {[%clk 0:01:30]}  Nf8 {[%clk 0:00:42]} 21. Rd2 {[%clk 0:01:28]}  Rd7 {[%clk 0:00:39]} 22. Rad1 {[%clk 0:01:24]}  Kh7 {[%clk 0:00:38]} 23. a4 {[%clk 0:01:06]}  Bh6 {[%clk 0:00:38]} 24. a5 {[%clk 0:01:04]}  Bxe3 {[%clk 0:00:37]} 25. Qxe3 {[%clk 0:01:03]}  Bg4 {[%clk 0:00:30]} 26. Rc1 {[%clk 0:00:54]}  Bxf3 {[%clk 0:00:30]} 27. Bxf3 {[%clk 0:00:50]}  Ne6 {[%clk 0:00:30]} 28. Bg2 {[%clk 0:00:43]}  Nd4 {[%clk 0:00:20]} 29. Rxd4 {[%clk 0:00:43]}  exd4 {[%clk 0:00:21]} 30. Qxd4 {[%clk 0:00:43]}  Qe6 {[%clk 0:00:20]} 31. Rd1 {[%clk 0:00:40]}  a6 {[%clk 0:00:15]} 32. f4 {[%clk 0:00:34]}  Re8 {[%clk 0:00:15]} 33. Kh1 {[%clk 0:00:33]}  Kg7 {[%clk 0:00:12]} 34. Kh2 {[%clk 0:00:33]}  Red8 {[%clk 0:00:05]} 35. e5 {[%clk 0:00:31]}  fxe5 {[%clk 0:00:05]} 36. fxe5 {[%clk 0:00:31]}  Rf7 {[%clk 0:00:02]} 37. Rd2 {[%clk 0:00:25]}  Re8 {[%clk 0:00:01]} 38. d7 {[%clk 0:00:20]}  Rd8 {[%clk 0:00:01]} 39. Bh3 {[%clk 0:00:20]} 1-0


[Site "https://www.chess.com"]

[Event "Titled Tuesday Blitz May 2 Late 2023"]
[White "Prieto Aranguren, Alain"]
[Black "Karttunen, Mika"]
[WhiteFideId "2268906"]
[BlackFideId "502081"]
[WhiteElo "2209"]
[BlackElo "2396"]
[Result "1-0"]
[Round "03"]
[TimeControl "180+2"]
[Date "2023.05.02"]
[WhiteClock "0:00:07"]
[BlackClock "0:00:05"]

1. d4 {[%clk 0:03:00]}  Nf6 {[%clk 0:02:56]} 2. c4 {[%clk 0:02:57]}  g6 {[%clk 0:02:55]} 3. Nc3 {[%clk 0:02:57]}  d5 {[%clk 0:02:55]} 4. Nf3 {[%clk 0:02:53]}  Bg7 {[%clk 0:02:53]} 5. Qb3 {[%clk 0:02:53]}  dxc4 {[%clk 0:02:51]} 6. Qxc4 {[%clk 0:02:54]}  a6 {[%clk 0:02:47]} 7. e4 {[%clk 0:02:52]}  b5 {[%clk 0:02:44]} 8. Qb3 {[%clk 0:02:52]}  c5 {[%clk 0:02:32]} 9. dxc5 {[%clk 0:02:49]}  Nfd7 {[%clk 0:02:31]} 10. Be3 {[%clk 0:02:42]}  Nc6 {[%clk 0:02:25]} 11. h4 {[%clk 0:02:32]}  O-O {[%clk 0:02:14]} 12. h5 {[%clk 0:02:32]}  e6 {[%clk 0:01:59]} 13. hxg6 {[%clk 0:02:31]}  hxg6 {[%clk 0:01:59]} 14. Rd1 {[%clk 0:02:20]}  Qe7 {[%clk 0:01:57]} 15. Nd4 {[%clk 0:01:43]}  Nxd4 {[%clk 0:01:46]} 16. Bxd4 {[%clk 0:01:42]}  Bxd4 {[%clk 0:01:36]} 17. Rxd4 {[%clk 0:01:42]}  Nxc5 {[%clk 0:01:36]} 18. Qd1 {[%clk 0:01:38]}  b4 {[%clk 0:00:53]} 19. e5 {[%clk 0:01:30]}  Qg5 {[%clk 0:00:31]} 20. Ne4 {[%clk 0:00:34]}  Qxe5 {[%clk 0:00:31]} 21. f4 {[%clk 0:00:26]}  Qc7 {[%clk 0:00:14]} 22. Qc2 {[%clk 0:00:14]}  Qxf4 {[%clk 0:00:09]} 23. Qxc5 {[%clk 0:00:11]}  Qe3+ {[%clk 0:00:09]} 24. Be2 {[%clk 0:00:10]}  Bb7 {[%clk 0:00:09]} 25. Qe5 {[%clk 0:00:08]}  Qc1+ {[%clk 0:00:07]} 26. Rd1 {[%clk 0:00:07]}  f6 {[%clk 0:00:05]} 27. Qxe6+ {[%clk 0:00:07]}  Kg7 {[%clk 0:00:05]} 28. Rxc1 {[%clk 0:00:07]} 1-0


[Site "https://www.chess.com"]

[Event "Titled Tuesday Blitz May 2 Late 2023"]
[White "Lopez Perdomo, Juan David"]
[Black "Graif, William"]
[WhiteFideId "4405137"]
[BlackFideId "2609835"]
[WhiteElo "1965"]
[BlackElo "2205"]
[Result "0-1"]
[Round "03"]
[TimeControl "180+2"]
[Date "2023.05.02"]
[WhiteClock "0:00:03"]
[BlackClock "0:00:20"]

1. e4 {[%clk 0:03:00]}  e5 {[%clk 0:02:57]} 2. Nf3 {[%clk 0:02:55]}  Bc5 {[%clk 0:02:56]} 3. c3 {[%clk 0:02:55]}  d5 {[%clk 0:02:56]} 4. exd5 {[%clk 0:02:39]}  Nf6 {[%clk 0:02:54]} 5. Bb5+ {[%clk 0:02:34]}  c6 {[%clk 0:02:46]} 6. dxc6 {[%clk 0:02:34]}  bxc6 {[%clk 0:02:47]} 7. Be2 {[%clk 0:02:30]}  e4 {[%clk 0:02:46]} 8. Nd4 {[%clk 0:02:06]}  O-O {[%clk 0:02:25]} 9. O-O {[%clk 0:01:53]}  Bxd4 {[%clk 0:02:24]} 10. cxd4 {[%clk 0:01:53]}  Qxd4 {[%clk 0:02:24]} 11. d3 {[%clk 0:01:50]}  Ba6 {[%clk 0:02:06]} 12. Nc3 {[%clk 0:01:05]}  exd3 {[%clk 0:02:00]} 13. Be3 {[%clk 0:01:06]}  Qxc3 {[%clk 0:01:37]} 14. bxc3 {[%clk 0:00:56]}  dxe2 {[%clk 0:01:35]} 15. Qc2 {[%clk 0:00:57]}  exf1=Q+ {[%clk 0:01:33]} 16. Rxf1 {[%clk 0:00:58]}  Bxf1 {[%clk 0:01:32]} 17. Kxf1 {[%clk 0:00:58]}  Nbd7 {[%clk 0:01:27]} 18. Qa4 {[%clk 0:00:54]}  Ne5 {[%clk 0:01:08]} 19. Bd4 {[%clk 0:00:51]}  Rfe8 {[%clk 0:01:00]} 20. h3 {[%clk 0:00:50]}  Nd3 {[%clk 0:00:49]} 21. Kg1 {[%clk 0:00:50]}  c5 {[%clk 0:00:43]} 22. Bxf6 {[%clk 0:00:48]}  gxf6 {[%clk 0:00:44]} 23. Qa6 {[%clk 0:00:44]}  Re1+ {[%clk 0:00:27]} 24. Kh2 {[%clk 0:00:44]}  Nxf2 {[%clk 0:00:27]} 25. g4 {[%clk 0:00:20]}  Kg7 {[%clk 0:00:24]} 26. Qc6 {[%clk 0:00:11]}  Rae8 {[%clk 0:00:22]} 27. Qxc5 {[%clk 0:00:12]}  R8e2 {[%clk 0:00:20]} 28. Qxa7 {[%clk 0:00:08]}  Ne4+ {[%clk 0:00:19]} 29. Qf2 {[%clk 0:00:03]}  Rxf2# {[%clk 0:00:20]} 0-1


[Site "https://www.chess.com"]

[Event "Titled Tuesday Blitz May 2 Late 2023"]
[White "Tomaszewski, Kacper"]
[Black "Osmonbekov, Talaibek"]
[WhiteFideId "1127373"]
[BlackFideId "2017253"]
[WhiteElo "2211"]
[BlackElo "2135"]
[Result "1/2-1/2"]
[Round "03"]
[TimeControl "180+2"]
[Date "2023.05.02"]
[WhiteClock "0:00:04"]
[BlackClock "0:00:11"]

1. c4 {[%clk 0:03:00]}  e5 {[%clk 0:02:58]} 2. Nc3 {[%clk 0:02:59]}  d6 {[%clk 0:02:58]} 3. e3 {[%clk 0:02:59]}  f5 {[%clk 0:02:59]} 4. d4 {[%clk 0:02:58]}  e4 {[%clk 0:02:59]} 5. b4 {[%clk 0:02:53]}  Nf6 {[%clk 0:02:59]} 6. Qb3 {[%clk 0:02:52]}  c6 {[%clk 0:02:57]} 7. Nge2 {[%clk 0:02:51]}  Be6 {[%clk 0:02:52]} 8. Nf4 {[%clk 0:02:49]}  Bf7 {[%clk 0:02:51]} 9. a4 {[%clk 0:02:44]}  Be7 {[%clk 0:02:49]} 10. Be2 {[%clk 0:02:39]}  g5 {[%clk 0:02:42]} 11. Nh3 {[%clk 0:02:37]}  h6 {[%clk 0:02:42]} 12. Ba3 {[%clk 0:02:33]}  O-O {[%clk 0:02:40]} 13. b5 {[%clk 0:02:32]}  Nbd7 {[%clk 0:02:30]} 14. f3 {[%clk 0:02:18]}  exf3 {[%clk 0:02:24]} 15. gxf3 {[%clk 0:02:17]}  d5 {[%clk 0:02:13]} 16. c5 {[%clk 0:02:03]}  Re8 {[%clk 0:02:00]} 17. Bd3 {[%clk 0:01:47]}  f4 {[%clk 0:01:50]} 18. exf4 {[%clk 0:01:34]}  Bxc5+ {[%clk 0:01:44]} 19. Kd2 {[%clk 0:01:34]}  Bxd4 {[%clk 0:01:43]} 20. fxg5 {[%clk 0:01:34]}  Ne4+ {[%clk 0:01:31]} 21. fxe4 {[%clk 0:01:29]}  dxe4 {[%clk 0:01:28]} 22. Bc4 {[%clk 0:01:28]}  Ne5 {[%clk 0:01:07]} 23. Bxf7+ {[%clk 0:01:24]}  Nxf7 {[%clk 0:01:07]} 24. g6 {[%clk 0:01:17]}  Bxc3+ {[%clk 0:00:55]} 25. Kxc3 {[%clk 0:01:17]}  Qd3+ {[%clk 0:00:51]} 26. Kb2 {[%clk 0:01:16]}  Qxb3+ {[%clk 0:00:44]} 27. Kxb3 {[%clk 0:01:15]}  Ne5 {[%clk 0:00:44]} 28. Rae1 {[%clk 0:00:58]}  Nf3 {[%clk 0:00:40]} 29. Re3 {[%clk 0:00:54]}  cxb5 {[%clk 0:00:38]} 30. axb5 {[%clk 0:00:50]}  a6 {[%clk 0:00:38]} 31. b6 {[%clk 0:00:48]}  Rac8 {[%clk 0:00:34]} 32. Nf2 {[%clk 0:00:41]}  Nd4+ {[%clk 0:00:29]} 33. Ka4 {[%clk 0:00:31]}  Rc4+ {[%clk 0:00:25]} 34. Bb4 {[%clk 0:00:31]}  Rxb4+ {[%clk 0:00:25]} 35. Kxb4 {[%clk 0:00:32]}  Nc2+ {[%clk 0:00:26]} 36. Kc3 {[%clk 0:00:30]}  Nxe3 {[%clk 0:00:27]} 37. Re1 {[%clk 0:00:24]}  Nd5+ {[%clk 0:00:23]} 38. Kd4 {[%clk 0:00:24]}  Nxb6 {[%clk 0:00:21]} 39. Nxe4 {[%clk 0:00:24]}  Kg7 {[%clk 0:00:21]} 40. Rb1 {[%clk 0:00:22]}  Re6 {[%clk 0:00:20]} 41. Nc5 {[%clk 0:00:17]}  Rxg6 {[%clk 0:00:18]} 42. Nxb7 {[%clk 0:00:16]}  h5 {[%clk 0:00:17]} 43. Nc5 {[%clk 0:00:16]}  a5 {[%clk 0:00:17]} 44. Ra1 {[%clk 0:00:14]}  a4 {[%clk 0:00:17]} 45. Ke5 {[%clk 0:00:10]}  Rg5+ {[%clk 0:00:16]} 46. Kd6 {[%clk 0:00:08]}  Nc4+ {[%clk 0:00:16]} 47. Kc6 {[%clk 0:00:08]}  a3 {[%clk 0:00:16]} 48. Ne6+ {[%clk 0:00:08]}  Kf6 {[%clk 0:00:17]} 49. Nxg5 {[%clk 0:00:08]}  Kxg5 {[%clk 0:00:17]} 50. Kb5 {[%clk 0:00:08]}  Ne5 {[%clk 0:00:13]} 51. Rxa3 {[%clk 0:00:08]}  Kg4 {[%clk 0:00:13]} 52. Kc5 {[%clk 0:00:08]}  Nf3 {[%clk 0:00:12]} 53. h3+ {[%clk 0:00:08]}  Kxh3 {[%clk 0:00:12]} 54. Rxf3+ {[%clk 0:00:08]}  Kg2 {[%clk 0:00:13]} 55. Rf4 {[%clk 0:00:07]}  Kg3 {[%clk 0:00:12]} 56. Rf1 {[%clk 0:00:07]}  h4 {[%clk 0:00:12]} 57. Kd4 {[%clk 0:00:07]}  Kg2 {[%clk 0:00:12]} 58. Rf8 {[%clk 0:00:06]}  h3 {[%clk 0:00:12]} 59. Ke3 {[%clk 0:00:06]}  h2 {[%clk 0:00:12]} 60. Rf2+ {[%clk 0:00:05]}  Kg1 {[%clk 0:00:11]} 61. Ke2 {[%clk 0:00:02]}  h1=Q {[%clk 0:00:10]} 62. Rf1+ {[%clk 0:00:03]}  Kg2 {[%clk 0:00:11]} 63. Rxh1 {[%clk 0:00:04]}  Kxh1 {[%clk 0:00:11]} 1/2-1/2


[Site "https://www.chess.com"]